[Event "Titled Tuesday Blitz May 2 Late 2023"]
[White "Gatterer, Florian"]
[Black "Chemin, Justo Reinaldo"]
[WhiteFideId "811688"]
[BlackFideId "2101580"]
[WhiteElo "2221"]
[BlackElo "1940"]
[Result "1/2-1/2"]
[Round "03"]
[TimeControl "180+2"]
[Date "2023.05.02"]
[WhiteClock "0:00:39"]
[BlackClock "0:00:57"]

1. c4 {[%clk 0:03:00]}  e6 {[%clk 0:02:59]} 2. g3 {[%clk 0:02:57]}  d5 {[%clk 0:02:59]} 3. Bg2 {[%clk 0:02:57]}  Nf6 {[%clk 0:02:59]} 4. Nf3 {[%clk 0:02:57]}  c6 {[%clk 0:02:58]} 5. b3 {[%clk 0:02:54]}  Nbd7 {[%clk 0:02:56]} 6. O-O {[%clk 0:02:54]}  Be7 {[%clk 0:02:56]} 7. Bb2 {[%clk 0:02:54]}  O-O {[%clk 0:02:57]} 8. d4 {[%clk 0:02:54]}  b6 {[%clk 0:02:57]} 9. Nc3 {[%clk 0:02:51]}  Ba6 {[%clk 0:02:57]} 10. Nd2 {[%clk 0:02:50]}  Rc8 {[%clk 0:02:56]} 11. e4 {[%clk 0:02:49]}  dxc4 {[%clk 0:02:46]} 12. bxc4 {[%clk 0:02:47]}  e5 {[%clk 0:02:31]} 13. Qa4 {[%clk 0:02:33]}  exd4 {[%clk 0:02:22]} 14. Qxa6 {[%clk 0:02:25]}  dxc3 {[%clk 0:02:18]} 15. Bxc3 {[%clk 0:02:24]}  Nc5 {[%clk 0:02:18]} 16. Qa3 {[%clk 0:02:11]}  Ncxe4 {[%clk 0:02:14]} 17. Qb2 {[%clk 0:02:11]}  Nxc3 {[%clk 0:02:11]} 18. Qxc3 {[%clk 0:02:11]}  Bc5 {[%clk 0:02:07]} 19. Rad1 {[%clk 0:02:09]}  Qd4 {[%clk 0:01:59]} 20. Qc2 {[%clk 0:02:07]}  Rfd8 {[%clk 0:01:56]} 21. Nb3 {[%clk 0:02:02]}  Qe5 {[%clk 0:01:51]} 22. Rxd8+ {[%clk 0:01:39]}  Rxd8 {[%clk 0:01:50]} 23. Bxc6 {[%clk 0:01:34]}  Ng4 {[%clk 0:01:44]} 24. Bd5 {[%clk 0:01:17]}  Qh5 {[%clk 0:01:37]} 25. h4 {[%clk 0:01:15]}  Nf6 {[%clk 0:01:29]} 26. Nxc5 {[%clk 0:01:12]}  bxc5 {[%clk 0:01:26]} 27. Bg2 {[%clk 0:01:09]}  Qe5 {[%clk 0:01:21]} 28. Qc1 {[%clk 0:01:03]}  Rd4 {[%clk 0:01:20]} 29. Re1 {[%clk 0:00:59]}  Qd6 {[%clk 0:01:19]} 30. Bd5 {[%clk 0:00:58]}  h6 {[%clk 0:01:14]} 31. Qa3 {[%clk 0:00:54]}  Nxd5 {[%clk 0:01:11]} 32. cxd5 {[%clk 0:00:54]}  Qxd5 {[%clk 0:01:11]} 33. Qxa7 {[%clk 0:00:52]}  c4 {[%clk 0:01:07]} 34. Qb8+ {[%clk 0:00:46]}  Kh7 {[%clk 0:01:04]} 35. Qe5 {[%clk 0:00:44]}  Qxe5 {[%clk 0:00:58]} 36. Rxe5 {[%clk 0:00:44]}  Rd2 {[%clk 0:00:57]} 37. Rc5 {[%clk 0:00:41]}  Rxa2 {[%clk 0:00:57]} 38. Rxc4 {[%clk 0:00:41]}  Ra7 {[%clk 0:00:57]} 39. Kg2 {[%clk 0:00:41]}  Re7 {[%clk 0:00:58]} 40. Rc6 {[%clk 0:00:40]}  h5 {[%clk 0:00:55]} 41. Rc5 {[%clk 0:00:39]}  g6 {[%clk 0:00:56]} 42. Rc6 {[%clk 0:00:39]}  Rd7 {[%clk 0:00:55]} 43. Rb6 {[%clk 0:00:39]}  Re7 {[%clk 0:00:56]} 44. Rc6 {[%clk 0:00:39]}  Rd7 {[%clk 0:00:56]} 45. Rb6 {[%clk 0:00:39]}  Re7 {[%clk 0:00:57]} 46. Rc6 {[%clk 0:00:39]} 1/2-1/2


[Site "https://www.chess.com"]

[Event "Titled Tuesday Blitz May 2 Late 2023"]
[White "Bryant, Todd"]
[Black "Ng, Gary"]
[WhiteFideId "2031299"]
[BlackFideId "2604914"]
[WhiteElo "2075"]
[BlackElo "2213"]
[Result "1-0"]
[Round "03"]
[TimeControl "180+2"]
[Date "2023.05.02"]
[WhiteClock "0:01:43"]
[BlackClock "0:01:07"]

1. e4 {[%clk 0:03:00]}  c6 {[%clk 0:02:57]} 2. d4 {[%clk 0:03:00]}  d5 {[%clk 0:02:58]} 3. f3 {[%clk 0:03:00]}  dxe4 {[%clk 0:02:49]} 4. fxe4 {[%clk 0:03:01]}  e5 {[%clk 0:02:50]} 5. Nf3 {[%clk 0:03:00]}  exd4 {[%clk 0:02:37]} 6. Bc4 {[%clk 0:03:00]}  Nf6 {[%clk 0:02:24]} 7. O-O {[%clk 0:03:00]}  Bc5 {[%clk 0:02:22]} 8. Ng5 {[%clk 0:03:00]}  O-O {[%clk 0:02:13]} 9. Nxf7 {[%clk 0:03:00]}  Rxf7 {[%clk 0:02:09]} 10. Bxf7+ {[%clk 0:03:01]}  Kxf7 {[%clk 0:02:10]} 11. e5 {[%clk 0:03:02]}  d3+ {[%clk 0:02:02]} 12. Kh1 {[%clk 0:03:01]}  Qd5 {[%clk 0:01:44]} 13. exf6 {[%clk 0:02:46]}  dxc2 {[%clk 0:01:43]} 14. Qxc2 {[%clk 0:02:35]}  g6 {[%clk 0:01:40]} 15. Nc3 {[%clk 0:02:20]}  Qc4 {[%clk 0:01:36]} 16. Rf4 {[%clk 0:01:59]}  Qe6 {[%clk 0:01:23]} 17. Ne4 {[%clk 0:01:54]}  Qd5 {[%clk 0:01:10]} 18. Qxc5 {[%clk 0:01:42]}  Qd1+ {[%clk 0:01:07]} 19. Qg1 {[%clk 0:01:43]} 1-0


[Site "https://www.chess.com"]

[Event "Titled Tuesday Blitz May 2 Late 2023"]
[White "Joubert, Dantelle"]
[Black "Kula, Robert"]
[WhiteFideId "14310813"]
[BlackFideId "1101218"]
[WhiteElo "1507"]
[BlackElo "2180"]
[Result "0-1"]
[Round "03"]
[TimeControl "180+2"]
[Date "2023.05.02"]
[WhiteClock "0:00:02"]
[BlackClock "0:01:06"]

1. e4 {[%clk 0:03:00]}  e5 {[%clk 0:02:59]} 2. Nf3 {[%clk 0:02:59]}  Nc6 {[%clk 0:02:58]} 3. Bb5 {[%clk 0:02:55]}  Nd4 {[%clk 0:02:56]} 4. Nxd4 {[%clk 0:02:51]}  exd4 {[%clk 0:02:56]} 5. O-O {[%clk 0:02:50]}  Bc5 {[%clk 0:02:56]} 6. c3 {[%clk 0:02:49]}  Ne7 {[%clk 0:02:54]} 7. a4 {[%clk 0:02:46]}  a6 {[%clk 0:02:53]} 8. Bc4 {[%clk 0:02:45]}  O-O {[%clk 0:02:52]} 9. d3 {[%clk 0:02:40]}  d5 {[%clk 0:02:48]} 10. exd5 {[%clk 0:02:34]}  Nxd5 {[%clk 0:02:48]} 11. Qf3 {[%clk 0:02:31]}  Be6 {[%clk 0:02:47]} 12. Nd2 {[%clk 0:02:03]}  dxc3 {[%clk 0:02:44]} 13. bxc3 {[%clk 0:02:01]}  Nxc3 {[%clk 0:02:40]} 14. Bxe6 {[%clk 0:02:00]}  fxe6 {[%clk 0:02:36]} 15. Qxb7 {[%clk 0:01:59]}  Qxd3 {[%clk 0:02:24]} 16. Qc6 {[%clk 0:01:44]}  Bd6 {[%clk 0:02:15]} 17. Qc4 {[%clk 0:01:13]}  Ne2+ {[%clk 0:01:51]} 18. Kh1 {[%clk 0:01:13]}  Nxc1 {[%clk 0:01:50]} 19. Qxc1 {[%clk 0:01:04]}  Bf4 {[%clk 0:01:46]} 20. Ra2 {[%clk 0:00:54]}  Rad8 {[%clk 0:01:43]} 21. Rd1 {[%clk 0:00:40]}  Rd7 {[%clk 0:01:40]} 22. Qc6 {[%clk 0:00:21]}  Qe2 {[%clk 0:01:20]} 23. Qf3 {[%clk 0:00:04]}  Qxf3 {[%clk 0:01:08]} 24. gxf3 {[%clk 0:00:04]}  Rfd8 {[%clk 0:01:08]} 25. Rc2 {[%clk 0:00:02]}  Rxd2 {[%clk 0:01:06]} 0-1


[Site "https://www.chess.com"]

[Event "Titled Tuesday Blitz May 2 Late 2023"]
[White "Napoli, Nicolo"]
[Black "Vargas, Mauricio"]
[WhiteFideId "813702"]
[BlackFideId "4404572"]
[WhiteElo "2308"]
[BlackElo "1998"]
[Result "1-0"]
[Round "03"]
[TimeControl "180+2"]
[Date "2023.05.02"]
[WhiteClock "0:00:23"]
[BlackClock "0:00:01"]

1. e4 {[%clk 0:02:56]}  d5 {[%clk 0:02:59]} 2. exd5 {[%clk 0:02:54]}  Qxd5 {[%clk 0:03:00]} 3. Nc3 {[%clk 0:02:55]}  Qa5 {[%clk 0:03:00]} 4. Nf3 {[%clk 0:02:55]}  c6 {[%clk 0:03:00]} 5. Rb1 {[%clk 0:02:55]}  Bg4 {[%clk 0:03:00]} 6. b4 {[%clk 0:02:55]}  Qc7 {[%clk 0:02:59]} 7. h3 {[%clk 0:02:51]}  Bh5 {[%clk 0:02:58]} 8. Bc4 {[%clk 0:02:47]}  Nf6 {[%clk 0:02:55]} 9. a4 {[%clk 0:02:45]}  a6 {[%clk 0:02:50]} 10. Qe2 {[%clk 0:02:44]}  b5 {[%clk 0:02:39]} 11. Bb3 {[%clk 0:02:25]}  e6 {[%clk 0:02:37]} 12. g4 {[%clk 0:01:51]}  Bg6 {[%clk 0:02:33]} 13. Ne5 {[%clk 0:01:52]}  Bd6 {[%clk 0:02:26]} 14. f4 {[%clk 0:01:36]}  O-O {[%clk 0:02:12]} 15. h4 {[%clk 0:01:32]}  h5 {[%clk 0:02:02]} 16. Nxg6 {[%clk 0:01:23]}  fxg6 {[%clk 0:01:59]} 17. Bxe6+ {[%clk 0:01:20]}  Kh7 {[%clk 0:01:56]} 18. f5 {[%clk 0:01:15]}  Re8 {[%clk 0:01:48]} 19. Ne4 {[%clk 0:01:06]}  Nxe4 {[%clk 0:01:46]} 20. Qxe4 {[%clk 0:01:07]}  Bg3+ {[%clk 0:01:46]} 21. Kd1 {[%clk 0:01:06]}  Qe5 {[%clk 0:01:02]} 22. Qxe5 {[%clk 0:00:50]}  Bxe5 {[%clk 0:01:01]} 23. Bf7 {[%clk 0:00:51]}  Re7 {[%clk 0:00:47]} 24. fxg6+ {[%clk 0:00:45]}  Kh8 {[%clk 0:00:41]} 25. gxh5 {[%clk 0:00:46]}  Nd7 {[%clk 0:00:37]} 26. c3 {[%clk 0:00:39]}  Nf6 {[%clk 0:00:35]} 27. d4 {[%clk 0:00:37]}  Bc7 {[%clk 0:00:24]} 28. h6 {[%clk 0:00:36]}  Ng4 {[%clk 0:00:15]} 29. Rg1 {[%clk 0:00:30]}  Nf2+ {[%clk 0:00:14]} 30. Kc2 {[%clk 0:00:28]}  Re2+ {[%clk 0:00:14]} 31. Kb3 {[%clk 0:00:26]}  bxa4+ {[%clk 0:00:07]} 32. Kxa4 {[%clk 0:00:27]}  a5 {[%clk 0:00:05]} 33. b5 {[%clk 0:00:24]}  cxb5+ {[%clk 0:00:05]} 34. Rxb5 {[%clk 0:00:25]}  Ra2+ {[%clk 0:00:05]} 35. Bxa2 {[%clk 0:00:23]}  gxh6 {[%clk 0:00:01]} 36. g7+ {[%clk 0:00:23]} 1-0


[Site "https://www.chess.com"]

[Event "Titled Tuesday Blitz May 2 Late 2023"]
[White "Ismayilova, Khanim"]
[Black "De Souza, Cristiano Gomes"]
[WhiteFideId "13429019"]
[BlackFideId "2151758"]
[WhiteElo "1633"]
[BlackElo "2068"]
[Result "0-1"]
[Round "03"]
[TimeControl "180+2"]
[Date "2023.05.02"]
[WhiteClock "0:00:01"]
[BlackClock "0:00:47"]

1. c4 {[%clk 0:03:00]}  e5 {[%clk 0:02:59]} 2. Nc3 {[%clk 0:03:01]}  Nc6 {[%clk 0:02:58]} 3. Nf3 {[%clk 0:03:00]}  g6 {[%clk 0:02:57]} 4. e3 {[%clk 0:03:00]}  Bg7 {[%clk 0:02:54]} 5. d4 {[%clk 0:03:00]}  exd4 {[%clk 0:02:52]} 6. exd4 {[%clk 0:03:00]}  d6 {[%clk 0:02:52]} 7. Be2 {[%clk 0:02:58]}  Nge7 {[%clk 0:02:51]} 8. O-O {[%clk 0:02:57]}  O-O {[%clk 0:02:24]} 9. d5 {[%clk 0:02:50]}  Ne5 {[%clk 0:02:22]} 10. Nxe5 {[%clk 0:02:50]}  Bxe5 {[%clk 0:02:23]} 11. Bg5 {[%clk 0:02:42]}  Bg7 {[%clk 0:02:22]} 12. Ne4 {[%clk 0:02:28]}  f6 {[%clk 0:02:21]} 13. Be3 {[%clk 0:02:25]}  Nf5 {[%clk 0:02:20]} 14. Qd2 {[%clk 0:02:10]}  Nxe3 {[%clk 0:02:20]} 15. Qxe3 {[%clk 0:02:09]}  Re8 {[%clk 0:02:20]} 16. Qf3 {[%clk 0:02:04]}  f5 {[%clk 0:02:14]} 17. Nc3 {[%clk 0:02:04]}  Bd7 {[%clk 0:02:10]} 18. Rfe1 {[%clk 0:02:01]}  Qf6 {[%clk 0:02:07]} 19. Bd3 {[%clk 0:01:56]}  a6 {[%clk 0:02:05]} 20. h3 {[%clk 0:01:53]}  Rxe1+ {[%clk 0:01:48]} 21. Rxe1 {[%clk 0:01:52]}  Re8 {[%clk 0:01:38]} 22. Rxe8+ {[%clk 0:01:51]}  Bxe8 {[%clk 0:01:35]} 23. Qe2 {[%clk 0:01:30]}  Bf7 {[%clk 0:01:32]} 24. Bc2 {[%clk 0:01:23]}  Qd4 {[%clk 0:01:30]} 25. Kf1 {[%clk 0:01:06]}  Be5 {[%clk 0:01:29]} 26. Qd3 {[%clk 0:00:48]}  c6 {[%clk 0:01:20]} 27. Qxd4 {[%clk 0:00:20]}  Bxd4 {[%clk 0:01:18]} 28. Bb3 {[%clk 0:00:21]}  Kg7 {[%clk 0:01:11]} 29. Ke2 {[%clk 0:00:21]}  Kf6 {[%clk 0:01:10]} 30. f3 {[%clk 0:00:19]}  Ke5 {[%clk 0:01:09]} 31. g3 {[%clk 0:00:18]}  g5 {[%clk 0:01:08]} 32. Kd3 {[%clk 0:00:17]}  Bf2 {[%clk 0:01:06]} 33. g4 {[%clk 0:00:16]}  f4 {[%clk 0:01:04]} 34. Ne2 {[%clk 0:00:15]}  Bg6+ {[%clk 0:01:03]} 35. Kd2 {[%clk 0:00:14]}  Be3+ {[%clk 0:01:01]} 36. Kd1 {[%clk 0:00:15]}  Bd3 {[%clk 0:00:57]} 37. dxc6 {[%clk 0:00:14]}  bxc6 {[%clk 0:00:57]} 38. Ba4 {[%clk 0:00:08]}  Bxc4 {[%clk 0:00:52]} 39. Bxc6 {[%clk 0:00:08]}  d5 {[%clk 0:00:52]} 40. a3 {[%clk 0:00:07]}  d4 {[%clk 0:00:51]} 41. Ba4 {[%clk 0:00:04]}  d3 {[%clk 0:00:51]} 42. Nc3 {[%clk 0:00:04]}  Kd4 {[%clk 0:00:50]} 43. Nb1 {[%clk 0:00:01]}  Bd5 {[%clk 0:00:47]} 44. Nd2 {[%clk 0:00:01]}  Bxd2 {[%clk 0:00:47]} 45. Kxd2 {[%clk 0:00:01]}  Bxf3 {[%clk 0:00:47]} 0-1


[Site "https://www.chess.com"]

[Event "Titled Tuesday Blitz May 2 Late 2023"]
[White "Kamsky, Gata"]
[Black "Bluebaum, Matthias"]
[WhiteFideId "2000024"]
[BlackFideId "24651516"]
[WhiteElo "2660"]
[BlackElo "2638"]
[Result "1/2-1/2"]
[Round "04"]
[TimeControl "180+2"]
[Date "2023.05.02"]
[WhiteClock "0:02:03"]
[BlackClock "0:01:46"]

1. d4 {[%clk 0:03:00]}  d5 {[%clk 0:02:58]} 2. Nf3 {[%clk 0:03:00]}  e6 {[%clk 0:02:58]} 3. g3 {[%clk 0:02:58]}  Nf6 {[%clk 0:02:57]} 4. c4 {[%clk 0:02:57]}  Nc6 {[%clk 0:02:57]} 5. Bg2 {[%clk 0:02:50]}  Bd6 {[%clk 0:02:57]} 6. O-O {[%clk 0:02:49]}  O-O {[%clk 0:02:57]} 7. Bg5 {[%clk 0:02:46]}  h6 {[%clk 0:02:57]} 8. Bxf6 {[%clk 0:02:45]}  Qxf6 {[%clk 0:02:57]} 9. Nc3 {[%clk 0:02:23]}  dxc4 {[%clk 0:02:57]} 10. Ne4 {[%clk 0:02:18]}  Qe7 {[%clk 0:02:52]} 11. Qa4 {[%clk 0:02:15]}  e5 {[%clk 0:02:20]} 12. Nxd6 {[%clk 0:02:10]}  cxd6 {[%clk 0:02:17]} 13. Qxc4 {[%clk 0:02:08]}  Bg4 {[%clk 0:01:50]} 14. dxe5 {[%clk 0:02:05]}  Bxf3 {[%clk 0:01:50]} 15. Bxf3 {[%clk 0:02:04]}  Nxe5 {[%clk 0:01:47]} 16. Qd5 {[%clk 0:02:03]}  Nxf3+ {[%clk 0:01:45]} 17. Qxf3 {[%clk 0:02:03]}  Rac8 {[%clk 0:01:46]} 1/2-1/2


[Site "https://www.chess.com"]

[Event "Titled Tuesday Blitz May 2 Late 2023"]
[White "Andreikin, Dmitry"]
[Black "Babazada, Khazar"]
[WhiteFideId "4158814"]
[BlackFideId "13413554"]
[WhiteElo "2736"]
[BlackElo "2351"]
[Result "1-0"]
[Round "04"]
[TimeControl "180+2"]
[Date "2023.05.02"]
[WhiteClock "0:01:31"]
[BlackClock "0:01:49"]

1. d4 {[%clk 0:03:00]}  Nf6 {[%clk 0:02:59]} 2. Bg5 {[%clk 0:02:59]}  e6 {[%clk 0:02:57]} 3. Nd2 {[%clk 0:02:59]}  h6 {[%clk 0:02:57]} 4. Bh4 {[%clk 0:02:58]}  d5 {[%clk 0:02:57]} 5. e3 {[%clk 0:02:58]}  c5 {[%clk 0:02:57]} 6. c3 {[%clk 0:02:58]}  Nc6 {[%clk 0:02:57]} 7. f4 {[%clk 0:02:56]}  Be7 {[%clk 0:02:58]} 8. Bd3 {[%clk 0:02:55]}  g5 {[%clk 0:02:58]} 9. Bg3 {[%clk 0:02:50]}  h5 {[%clk 0:02:48]} 10. fxg5 {[%clk 0:02:41]}  Ng4 {[%clk 0:02:48]} 11. Nh3 {[%clk 0:02:34]}  Bxg5 {[%clk 0:02:46]} 12. Nxg5 {[%clk 0:02:33]}  Qxg5 {[%clk 0:02:46]} 13. Bf4 {[%clk 0:02:32]}  Qh4+ {[%clk 0:02:35]} 14. g3 {[%clk 0:02:27]}  Qe7 {[%clk 0:02:35]} 15. h3 {[%clk 0:02:26]}  Nf6 {[%clk 0:02:34]} 16. Bg5 {[%clk 0:02:10]}  Rg8 {[%clk 0:02:17]} 17. Bh4 {[%clk 0:02:02]}  e5 {[%clk 0:02:18]} 18. dxc5 {[%clk 0:01:52]}  e4 {[%clk 0:02:10]} 19. Bb5 {[%clk 0:01:49]}  Rg6 {[%clk 0:02:10]} 20. Nb3 {[%clk 0:01:46]}  Bd7 {[%clk 0:02:07]} 21. Bxc6 {[%clk 0:01:39]}  bxc6 {[%clk 0:02:07]} 22. Qd4 {[%clk 0:01:38]}  Qe6 {[%clk 0:01:58]} 23. O-O-O {[%clk 0:01:38]}  Ng8 {[%clk 0:01:55]} 24. Qh8 {[%clk 0:01:33]}  a5 {[%clk 0:01:49]} 25. Nd4 {[%clk 0:01:31]} 1-0


[Site "https://www.chess.com"]

[Event "Titled Tuesday Blitz May 2 Late 2023"]
[White "Quesada Perez, Yasser"]
[Black "Grischuk, Alexander"]
[WhiteFideId "3509362"]
[BlackFideId "4126025"]
[WhiteElo "2496"]
[BlackElo "2727"]
[Result "0-1"]
[Round "04"]
[TimeControl "180+2"]
[Date "2023.05.02"]
[WhiteClock "0:00:06"]
[BlackClock "0:00:46"]

1. e4 {[%clk 0:03:00]}  e6 {[%clk 0:03:00]} 2. d3 {[%clk 0:03:01]}  c5 {[%clk 0:02:59]} 3. Nf3 {[%clk 0:03:00]}  Nc6 {[%clk 0:02:59]} 4. g3 {[%clk 0:03:01]}  Nge7 {[%clk 0:02:52]} 5. Bg2 {[%clk 0:03:01]}  g6 {[%clk 0:02:48]} 6. h4 {[%clk 0:03:00]}  h6 {[%clk 0:02:46]} 7. O-O {[%clk 0:02:44]}  Bg7 {[%clk 0:02:45]} 8. c3 {[%clk 0:02:42]}  e5 {[%clk 0:02:41]} 9. d4 {[%clk 0:02:25]}  exd4 {[%clk 0:02:37]} 10. cxd4 {[%clk 0:02:25]}  cxd4 {[%clk 0:02:38]} 11. e5 {[%clk 0:02:06]}  d6 {[%clk 0:02:17]} 12. Nxd4 {[%clk 0:01:51]}  dxe5 {[%clk 0:02:09]} 13. Nb5 {[%clk 0:01:51]}  O-O {[%clk 0:01:59]} 14. N1c3 {[%clk 0:01:45]}  Nd4 {[%clk 0:01:45]} 15. Nxd4 {[%clk 0:01:39]}  exd4 {[%clk 0:01:46]} 16. Nb5 {[%clk 0:01:34]}  Qb6 {[%clk 0:01:38]} 17. a4 {[%clk 0:01:19]}  a6 {[%clk 0:01:38]} 18. Na3 {[%clk 0:01:14]}  Be6 {[%clk 0:01:38]} 19. a5 {[%clk 0:01:05]}  Qxa5 {[%clk 0:01:35]} 20. Bxb7 {[%clk 0:01:01]}  Rab8 {[%clk 0:01:35]} 21. Bg2 {[%clk 0:01:01]}  Bd5 {[%clk 0:01:22]} 22. Bxd5 {[%clk 0:00:51]}  Qxd5 {[%clk 0:01:21]} 23. Qd3 {[%clk 0:00:47]}  Nc6 {[%clk 0:01:17]} 24. Qxa6 {[%clk 0:00:41]}  Ne5 {[%clk 0:01:14]} 25. Rd1 {[%clk 0:00:14]}  Rfe8 {[%clk 0:01:03]} 26. Bf4 {[%clk 0:00:06]}  Nf3+ {[%clk 0:01:02]} 27. Kf1 {[%clk 0:00:07]}  Rxb2 {[%clk 0:00:59]} 28. Qc4 {[%clk 0:00:06]}  Nd2+ {[%clk 0:00:46]} 0-1


[Site "https://www.chess.com"]

[Event "Titled Tuesday Blitz May 2 Late 2023"]
[White "Indjic, Aleksandar"]
[Black "Deac, Bogdan-Daniel"]
[WhiteFideId "911925"]
[BlackFideId "1226380"]
[WhiteElo "2614"]
[BlackElo "2649"]
[Result "1-0"]
[Round "04"]
[TimeControl "180+2"]
[Date "2023.05.02"]
[WhiteClock "0:00:07"]
[BlackClock "0:00:01"]

1. e4 {[%clk 0:02:54]}  e5 {[%clk 0:02:59]} 2. Nf3 {[%clk 0:02:53]}  Nf6 {[%clk 0:02:59]} 3. Nc3 {[%clk 0:02:53]}  Nc6 {[%clk 0:02:59]} 4. d4 {[%clk 0:02:54]}  exd4 {[%clk 0:02:58]} 5. Nxd4 {[%clk 0:02:55]}  Bb4 {[%clk 0:02:58]} 6. Nxc6 {[%clk 0:02:54]}  bxc6 {[%clk 0:02:59]} 7. Bd3 {[%clk 0:02:53]}  O-O {[%clk 0:03:00]} 8. O-O {[%clk 0:02:53]}  d5 {[%clk 0:03:00]} 9. exd5 {[%clk 0:02:52]}  Bg4 {[%clk 0:03:00]} 10. f3 {[%clk 0:02:41]}  Bh5 {[%clk 0:03:00]} 11. Bg5 {[%clk 0:02:41]}  cxd5 {[%clk 0:02:59]} 12. Bxf6 {[%clk 0:02:38]}  Qxf6 {[%clk 0:03:00]} 13. Nxd5 {[%clk 0:02:37]}  Qxb2 {[%clk 0:03:00]} 14. Rb1 {[%clk 0:02:11]}  Bc5+ {[%clk 0:03:00]} 15. Kh1 {[%clk 0:02:11]}  Qe5 {[%clk 0:03:00]} 16. f4 {[%clk 0:02:06]}  Bxd1 {[%clk 0:02:59]} 17. fxe5 {[%clk 0:02:06]}  Bg4 {[%clk 0:03:00]} 18. Nxc7 {[%clk 0:02:05]}  Rac8 {[%clk 0:02:58]} 19. Nb5 {[%clk 0:02:04]}  Be6 {[%clk 0:02:46]} 20. a4 {[%clk 0:02:02]}  Rfd8 {[%clk 0:02:43]} 21. Rfd1 {[%clk 0:01:53]}  g6 {[%clk 0:02:39]} 22. Be4 {[%clk 0:01:44]}  Rxd1+ {[%clk 0:02:27]} 23. Rxd1 {[%clk 0:01:43]}  Bb6 {[%clk 0:02:27]} 24. Bd3 {[%clk 0:01:22]}  Rc5 {[%clk 0:02:14]} 25. Re1 {[%clk 0:01:20]}  Ba5 {[%clk 0:02:14]} 26. Re2 {[%clk 0:01:14]}  Bg4 {[%clk 0:02:05]} 27. Re4 {[%clk 0:00:49]}  Bf5 {[%clk 0:02:03]} 28. Re3 {[%clk 0:00:42]}  Bd2 {[%clk 0:01:29]} 29. Re2 {[%clk 0:00:28]}  Bxd3 {[%clk 0:01:15]} 30. Rxd2 {[%clk 0:00:28]}  Bxc2 {[%clk 0:00:33]} 31. h3 {[%clk 0:00:28]}  Bxa4 {[%clk 0:00:33]} 32. Nxa7 {[%clk 0:00:25]}  Rxe5 {[%clk 0:00:33]} 33. Rd4 {[%clk 0:00:23]}  Ra5 {[%clk 0:00:27]} 34. Nc8 {[%clk 0:00:22]}  Kf8 {[%clk 0:00:27]} 35. Nb6 {[%clk 0:00:20]}  Bc6 {[%clk 0:00:20]} 36. Rc4 {[%clk 0:00:19]}  Bb7 {[%clk 0:00:20]} 37. Rc7 {[%clk 0:00:19]}  Be4 {[%clk 0:00:20]} 38. Rc4 {[%clk 0:00:16]}  f5 {[%clk 0:00:18]} 39. Nd7+ {[%clk 0:00:16]}  Ke7 {[%clk 0:00:17]} 40. Nc5 {[%clk 0:00:16]}  Bd5 {[%clk 0:00:13]} 41. Rc2 {[%clk 0:00:16]}  Ra3 {[%clk 0:00:13]} 42. Kh2 {[%clk 0:00:15]}  Kd6 {[%clk 0:00:12]} 43. h4 {[%clk 0:00:08]}  f4 {[%clk 0:00:09]} 44. Kg1 {[%clk 0:00:06]}  h6 {[%clk 0:00:08]} 45. Kh2 {[%clk 0:00:05]}  g5 {[%clk 0:00:08]} 46. hxg5 {[%clk 0:00:06]}  hxg5 {[%clk 0:00:08]} 47. Kg1 {[%clk 0:00:07]}  g4 {[%clk 0:00:08]} 48. Kh2 {[%clk 0:00:07]}  Re3 {[%clk 0:00:03]} 49. Na4 {[%clk 0:00:07]}  g3+ {[%clk 0:00:03]} 50. Kh3 {[%clk 0:00:07]}  Be4 {[%clk 0:00:02]} 51. Rd2+ {[%clk 0:00:07]}  Ke5 {[%clk 0:00:03]} 52. Nc5 {[%clk 0:00:06]}  Bf5+ {[%clk 0:00:03]} 53. Kh4 {[%clk 0:00:07]}  Re1 {[%clk 0:00:02]} 54. Kg5 {[%clk 0:00:07]}  Re3 {[%clk 0:00:02]} 55. Nd7+ {[%clk 0:00:07]}  Bxd7 {[%clk 0:00:02]} 56. Rxd7 {[%clk 0:00:08]}  f3 {[%clk 0:00:02]} 57. gxf3 {[%clk 0:00:06]}  Rxf3 {[%clk 0:00:02]} 58. Rd1 {[%clk 0:00:07]}  g2 {[%clk 0:00:01]} 59. Re1+ {[%clk 0:00:06]}  Kd4 {[%clk 0:00:01]} 60. Rg1 {[%clk 0:00:07]} 1-0


[Site "https://www.chess.com"]

[Event "Titled Tuesday Blitz May 2 Late 2023"]
[White "Matlakov, Maxim"]
[Black "Perez Ponsa, Federico"]
[WhiteFideId "4168003"]
[BlackFideId "117927"]
[WhiteElo "2666"]
[BlackElo "2590"]
[Result "1-0"]
[Round "04"]
[TimeControl "180+2"]
[Date "2023.05.02"]
[WhiteClock "0:00:14"]
[BlackClock "0:00:27"]

1. e4 {[%clk 0:03:00]}  c6 {[%clk 0:02:34]} 2. d4 {[%clk 0:03:00]}  d5 {[%clk 0:02:34]} 3. e5 {[%clk 0:03:00]}  Bf5 {[%clk 0:02:35]} 4. Nd2 {[%clk 0:02:58]}  e6 {[%clk 0:02:34]} 5. Nb3 {[%clk 0:02:58]}  c5 {[%clk 0:02:32]} 6. dxc5 {[%clk 0:02:50]}  Bxc5 {[%clk 0:02:32]} 7. Bb5+ {[%clk 0:02:47]}  Nc6 {[%clk 0:02:15]} 8. Bxc6+ {[%clk 0:02:33]}  bxc6 {[%clk 0:02:15]} 9. Nxc5 {[%clk 0:02:34]}  Qa5+ {[%clk 0:02:16]} 10. c3 {[%clk 0:02:34]}  Qxc5 {[%clk 0:02:16]} 11. Ne2 {[%clk 0:02:32]}  Ne7 {[%clk 0:02:15]} 12. O-O {[%clk 0:02:23]}  O-O {[%clk 0:02:16]} 13. Be3 {[%clk 0:02:18]}  Qc4 {[%clk 0:02:11]} 14. b3 {[%clk 0:02:05]}  Qd3 {[%clk 0:02:10]} 15. Bc5 {[%clk 0:02:05]}  Rfe8 {[%clk 0:02:06]} 16. Nd4 {[%clk 0:02:04]}  Ng6 {[%clk 0:01:56]} 17. Qe1 {[%clk 0:01:49]}  Qa6 {[%clk 0:01:46]} 18. Qe3 {[%clk 0:01:47]}  Qd3 {[%clk 0:01:40]} 19. Rfe1 {[%clk 0:01:36]}  Qxe3 {[%clk 0:01:35]} 20. Rxe3 {[%clk 0:01:37]}  Rec8 {[%clk 0:01:33]} 21. h3 {[%clk 0:01:28]}  Nf8 {[%clk 0:01:27]} 22. b4 {[%clk 0:00:40]}  Nd7 {[%clk 0:01:25]} 23. Bd6 {[%clk 0:00:39]}  Bg6 {[%clk 0:01:23]} 24. Nb3 {[%clk 0:00:38]}  Bc2 {[%clk 0:01:21]} 25. Nc5 {[%clk 0:00:34]}  Nxc5 {[%clk 0:01:20]} 26. Bxc5 {[%clk 0:00:35]}  a5 {[%clk 0:01:20]} 27. a3 {[%clk 0:00:34]}  axb4 {[%clk 0:01:08]} 28. cxb4 {[%clk 0:00:34]}  Rd8 {[%clk 0:01:08]} 29. Rc3 {[%clk 0:00:33]}  Ba4 {[%clk 0:01:07]} 30. Bd4 {[%clk 0:00:33]}  Bb5 {[%clk 0:01:06]} 31. f3 {[%clk 0:00:33]}  Ra4 {[%clk 0:01:03]} 32. Kf2 {[%clk 0:00:32]}  Rda8 {[%clk 0:01:04]} 33. Bc5 {[%clk 0:00:32]}  f6 {[%clk 0:01:04]} 34. Re3 {[%clk 0:00:27]}  Kf7 {[%clk 0:01:04]} 35. f4 {[%clk 0:00:27]}  h5 {[%clk 0:01:04]} 36. h4 {[%clk 0:00:27]}  Rd8 {[%clk 0:01:03]} 37. Kg3 {[%clk 0:00:27]}  d4 {[%clk 0:01:02]} 38. Re4 {[%clk 0:00:24]}  d3 {[%clk 0:00:59]} 39. Rd4 {[%clk 0:00:21]}  Rda8 {[%clk 0:00:52]} 40. Rd7+ {[%clk 0:00:20]}  Kg6 {[%clk 0:00:52]} 41. Rd1 {[%clk 0:00:16]}  Rxa3 {[%clk 0:00:52]} 42. Re7 {[%clk 0:00:16]}  Kf5 {[%clk 0:00:52]} 43. Rxg7 {[%clk 0:00:16]}  fxe5 {[%clk 0:00:35]} 44. Rg5+ {[%clk 0:00:14]}  Kf6 {[%clk 0:00:25]} 45. fxe5+ {[%clk 0:00:14]}  Kf7 {[%clk 0:00:25]} 46. Rf1+ {[%clk 0:00:14]}  Ke8 {[%clk 0:00:26]} 47. Rg8+ {[%clk 0:00:14]}  Kd7 {[%clk 0:00:27]} 48. Rf7# {[%clk 0:00:14]} 1-0


[Site "https://www.chess.com"]